[Event "Icelandic Chess-ch 2023"]
[Site "Hafnarfjordur"]
[Date "2023.05.19"]
[Round "5.2"]
[White "Stefansson, Hannes"]
[Black "Ingvason, Johann"]
[Result "1-0"]
[ECO "C67"]
[WhiteElo "2521"]
[BlackElo "2076"]
[Annotator "TA"]
[PlyCount "65"]
[EventDate "2023.05.13"]
[EventType "tourn"]
[EventCountry "ISL"]
[SourceTitle "playchess.com"]
[Source "ChessBase"]
[SourceQuality "1"]
[TimeControl "40/5400+30:1800+30"]

{[%evp 20,65,27,15,39,16,14,24,49,18,33,0,25,18,-5,20,72,59,70,14,14,11,12,13,9,21,124,126,117,122,102,108,133,130,173,166,187,148,162,157,229,228,210,211,396,416,410,407]} 1. e4 {[%emt 0:00:04]} e5 {[%emt 0:01:39]} 2. Nf3 {[%emt 0:00:21]} Nc6 {[%emt 0:00:29]} 3. Bb5 {[%emt 0:00:19]} Nf6 {[%emt 0:00:11]} 4. O-O {[%emt 0:00:26]} Nxe4 {[%emt 0:00:06]} 5. d4 {[%emt 0:00:16]} Nd6 {[%emt 0:00:13]} 6. Bxc6 {[%emt 0:00:17]} dxc6 {[%emt 0:00:06]} 7. dxe5 {[%emt 0:00:07]} Nf5 {[%emt 0:00:07]} 8. Qxd8+ {[%emt 0:00:20]} Kxd8 {[%emt 0:00:04]} 9. h3 {[%emt 0:00:18]} Ke8 {[%emt 0:00:05]} 10. Nc3 {[%emt 0:00:50]} Ne7 {[%emt 0:00:22]} 11. Re1 {[%emt 0:05:47]} Ng6 {[%emt 0:04:36] C67: Ruy Lopez: Berlin Defence: 4 0-0 Nxe4.} 12. a3 {[%emt 0:01:33]} Be7 {[%emt 0:01:15]} 13. Ne4 {[%emt 0:01:38] [#]} Bd7 $146 {[%emt 0:09:54] White has an edge.} ({Predecessor:} 13... h6 14. b3 c5 15. Nf6+ Kf8 16. Nd5 Bd8 17. Be3 b6 18. c4 Be6 19. Rad1 c6 {0-1 Bogdanovic,R-Minev,N Sarajevo-09 1966 (9)}) 14. Kh2 {[%emt 0:07:00]} (14. Nf6+ $5 Kd8 15. Nxd7 Kxd7 16. Re4 $14) 14... Rd8 {[%emt 0:00:46]} 15. Bd2 {[%emt 0:04:06][%cal Oe4d6]} c5 {[%emt 0:04:03] [#]} 16. Nf6+ $1 {[%emt 0:04:27]} gxf6 {[%emt 0:03:17]} 17. exf6 {[%emt 0:00:06][%mdl 64] Pin} Be6 {[%emt 0:00:15]} 18. fxe7 $16 {[%emt 0:00:10]} Kxe7 {[%emt 0:19:03]} 19. Bg5+ {[%emt 0:05:19]} (19. b4 $14) 19... f6 $11 {[%emt 0:02:52]} 20. Be3 {[%emt 0:00:20]} b6 {[%emt 0:01:29]} 21. b4 {[%emt 0:00:12]} Kf7 {[%emt 0:00:38]} 22. bxc5 {[%emt 0:00:26]} bxc5 {[%emt 0:06:09]} (22... Bd5 $11 {keeps the balance.}) 23. Bxc5 $16 {[%emt 0:00:56]} a6 {[%emt 0:01:50]} 24. Re3 {[%emt 0:06:12]} Rhe8 {[%emt 0:03:45]} 25. Rc3 {[%emt 0:03:07] White is more active.} Nf4 {[%emt 0:04:25]} 26. Bd4 {[%emt 0:01:46]} Rd7 {[%emt 0:02:14]} 27. Rc6 {[%emt 0:00:51]} Ne2 {[%emt 0:12:58]} 28. c3 {[%emt 0:02:20]} Rb8 {[%emt 0:08:32]} 29. Rxa6 {[%emt 0:09:21]} c5 {[%emt 0:00:18]} (29... Rb2 $16 30. Re1 Nxd4) 30. Bxc5 $18 {[%emt 0:00:40]} Nxc3 {[%emt 0:00:07]} 31. Rc1 {[%emt 0:04:24]} Ne2 {[%emt 0:04:55] [#]} (31... Nb5 {is a better defense.} 32. a4 Nc7) 32. Rc2 {[%emt 0:00:38]} Rc8 {[%emt 0:01:01]} 33. Rxe6 {[%emt 0:01:01] Weighted Error Value: White=0.11 (very precise) /Black=0.33} ({Much less strong is} 33. Rxe2 Bc4 $18) 1-0

[Event "Icelandic Chess-ch 2023"]
[Site "Hafnarfjordur"]
[Date "2023.05.19"]
[Round "5.3"]
[White "Heimisson, Hilmir Freyr"]
[Black "Domalchuk-Jonasson, Aleksandr"]
[Result "1-0"]
[ECO "C11"]
[WhiteElo "2353"]
[BlackElo "2338"]
[Annotator "TA"]
[PlyCount "103"]
[EventDate "2023.05.13"]
[EventType "tourn"]
[EventCountry "ISL"]
[SourceTitle "playchess.com"]
[Source "ChessBase"]
[SourceQuality "1"]
[TimeControl "40/5400+30:1800+30"]

{[%evp 14,103,14,12,31,8,8,8,39,39,92,95,175,26,28,31,52,35,50,37,90,35,52,14,80,20,91,41,119,100,118,62,91,89,144,119,163,165,215,210,201,215,179,204,234,226,233,148,187,160,238,79,81,78,66,31,254,245,233,193,299,237,337,290,316,279,860,846,754,592,605,578,610,468,958,520,5206,5206,5189,5097,1876,1583,6620,5551,5306,5306,5297,5254,5297,5293,29990,29991]} 1. e4 {[%emt 0:00:03]} e6 {[%emt 0:00:30]} 2. d4 {[%emt 0:00:10]} d5 {[%emt 0:00:09]} 3. Nc3 {[%emt 0:00:08]} Nf6 {[%emt 0:00:42]} 4. e5 {[%emt 0:00:13]} Nfd7 {[%emt 0:00:05]} 5. f4 {[%emt 0:00:10]} c5 {[%emt 0:00:13]} 6. Nf3 {[%emt 0:00:08]} Nc6 {[%emt 0:00:10]} 7. Be3 {[%emt 0:00:12]} a6 {[%emt 0:01:35]} 8. a3 {[%emt 0:02:59]} b5 {[%emt 0:02:56] C11: French: Classical System: 4 e5 and 4 Bg5 dxe4.} 9. Bd3 {[%emt 0:00:55]} Be7 {[%emt 0:02:46]} 10. O-O {[%emt 0:01:09] [#]} Qc7 $146 {[%emt 0:02:02] The position is equal.} (10... c4 $5 {[%cal Rc4d3]} 11. Be2 Qb6 $11) ({Predecessor:} 10... c4 11. Be2 f5 12. Qd2 Nb6 13. Kh1 Bd7 14. Rg1 Qc7 15. Nd1 O-O-O 16. b4 Kb7 {0-1 Caruana,F (2791)-Vachier Lagrave,M (2766) Speed Chess Chess.com INT blitz 2021 (1.26)}) 11. Qe1 {[%emt 0:06:58]} b4 {[%emt 0:15:40]} ({Better is} 11... c4 $14 12. Be2 Nb6) 12. axb4 $16 {[%emt 0:16:07] White is more active.} Nxb4 {[%emt 0:02:20]} (12... c4 $16 {might work better.}) 13. Rc1 {[%emt 0:10:27]} (13. f5 $18) 13... cxd4 {[%emt 0:13:49]} 14. Nxd4 {[%emt 0:00:51]} g6 {[%emt 0:01:52]} 15. Be2 {[%emt 0:03:37]} Nb6 {[%emt 0:07:19] Wards off Na4} 16. Nd1 {[%emt 0:01:57]} Bd7 {[%emt 0:04:41]} (16... Nc4 $14) 17. Bf2 {[%emt 0:06:34]} ({White should try} 17. b3 $16) 17... Nc6 $14 {[%emt 0:12:27]} 18. Nb3 {[%emt 0:01:20]} Nc4 {[%emt 0:09:19]} (18... h5 $11) 19. Kh1 {[%emt 0:10:26]} (19. Bxc4 $16 {And now Be2 would win.} dxc4 20. Nd2) 19... Nd8 {[%emt 0:06:50]} (19... O-O $11) 20. Bh4 {[%emt 0:02:53]} (20. Nd4 $16) 20... g5 {[%emt 0:03:38]} 21. Bg3 {[%emt 0:06:08][%cal Bh4g3,Bg3h2,Bh2f4][%mdl 32]} ({Don't take} 21. fxg5 Qxe5 22. Bxc4 Qxe1 23. Rxe1 dxc4 $11) 21... h5 {[%emt 0:01:31] [#]} 22. h3 {[%emt 0:03:23]} (22. h4 $1 $16) 22... h4 {[%emt 0:02:31]} 23. Bh2 {[%emt 0:00:20]} gxf4 {[%emt 0:01:07]} ({Black should play} 23... Rb8) 24. Bxf4 $16 {[%emt 0:00:11]} Rb8 {[%emt 0:03:20]} 25. Nd4 {[%emt 0:06:03]} Qa7 {[%emt 0:03:17]} (25... Nxb2 $142 26. Nf5 (26. Nxb2 Rxb2 $16) 26... Bc6) 26. b3 $18 {[%emt 0:06:11]} Qxd4 {[%emt 0:00:28]} 27. bxc4 {[%emt 0:00:10]} dxc4 {[%emt 0:00:26]} 28. Ne3 {[%emt 0:00:50]} Bc6 {[%emt 0:00:55]} 29. Rd1 {[%emt 0:00:55][%mdl 1024] White has strong compensation.} Qc5 {[%emt 0:01:08]} (29... Qe4 $2 30. Bf3 (30. Nxc4 $2 Qxg2#) (30. Bxc4 a5 $16) 30... Qg6 31. Rxd8+ (31. Nxc4 Bxf3 32. Rxf3 Qxc2 $16) 31... Rxd8 32. Bxc6+ Kf8 33. Qa5 $18) 30. Ng4 {[%emt 0:02:32]} (30. Bxc4 a5 $14) 30... Bd5 {[%emt 0:00:57]} 31. Bf3 {[%emt 0:02:48]} Rb7 {[%emt 0:00:03]} (31... Rb5 $16) 32. Ne3 $2 {[%emt 0:06:37]} (32. Bxd5 $18 exd5 33. Ne3) 32... Bxf3 $16 {[%emt 0:00:18]} 33. Rxf3 {[%emt 0:00:02][%cal Bf1f3,Bf3f4,Bf4g4][%mdl 32]} Nc6 {[%emt 0:00:55]} 34. Qf1 {[%emt 0:01:21]} (34. Ng4 {feels hotter.} Rd7 35. Rxd7 Kxd7 36. Be3) 34... Na5 {[%emt 0:00:56] Black cannot hold the game after this.} (34... Nxe5 $14 35. Bxe5 {[%mdl 64] Discovered Attack} Qxe5) 35. Bh2 $18 {[%emt 0:00:54]} Rh7 {[%emt 0:00:30]} 36. Bg1 {[%emt 0:01:06][%cal Oe3d5]} Qc6 {[%emt 0:00:22]} (36... Qb5 {was necessary.} 37. Ng4 Nc6) 37. Rf4 {[%emt 0:00:21][%cal Re3c4]} Rc7 {[%emt 0:00:34]} (37... Rd7 $142 38. Rxd7 (38. Nxc4 Rxd1 39. Qxd1 Nxc4 $16) 38... Qxd7) 38. Rg4 {[%emt 0:00:09] Black must now prevent Rg8+.} Rh8 {[%emt 0:00:09] Prevents Rg8+.} 39. Rg7 {[%emt 0:01:26][%csl Gg7][%cal Rf1f7]} Bf8 $2 {[%emt 0:00:47] [#]} (39... Rf8 40. Ng4 Rd7 41. Rxd7 Qxd7 42. Nf6+ Bxf6 43. exf6 Qd5) 40. Qf6 $1 {[%emt 0:00:06][%csl Gf6][%cal Rd1d8]} Nb7 {[%emt 0:00:18] Against Rd8+} 41. Rg4 {[%emt 0:04:39]} Rh6 {[%emt 0:01:17]} 42. Qf1 {[%emt 0:01:58]} Nc5 {[%emt 0:15:36]} 43. Nxc4 {[%emt 0:11:46]} Rd7 {[%emt 0:09:50]} (43... Ne4 $142) 44. Rxd7 {[%emt 0:07:44]} Qxd7 {[%emt 0:00:44] [#]} (44... Nxd7 $142 45. Rg8 f6) 45. Nd6+ $1 {[%emt 0:04:15][%mdl 512]} Bxd6 {[%emt 0:00:11]} 46. Rg8+ {[%emt 0:00:24]} ({Weaker is} 46. exd6 f5 $16) 46... Ke7 {[%emt 0:00:16]} 47. Qf4 {[%emt 0:00:29] White threatens Qg5+ and mate.} Ne4 {[%emt 0:01:51] Dodges Qg5+} 48. exd6+ {[%emt 0:00:41]} Qxd6 {[%emt 0:00:05]} 49. Qxe4 {[%emt 0:00:15]} Rh5 {[%emt 0:00:11]} 50. c4 {[%emt 0:01:20]} Qd1 {[%emt 0:00:36] [#]} 51. c5 $1 {[%emt 0:00:43][%mdl 64] c6 would kill now. Deflection} Rxc5 {[%emt 0:00:41]} (51... Qd2 52. Bd4) 52. Qxh4+ {[%emt 0:00:07] Weighted Error Value: White=0.56/Black=0.59} 1-0

[Event "Icelandic Chess-ch 2023"]
[Site "Hafnarfjordur"]
[Date "2023.05.19"]
[Round "5.4"]
[White "Gretarsson, Hjorvar Steinn"]
[Black "Danielsen, Henrik"]
[Result "1-0"]
[ECO "C42"]
[WhiteElo "2539"]
[BlackElo "2501"]
[Annotator "TA"]
[PlyCount "97"]
[EventDate "2023.05.13"]
[EventType "tourn"]
[EventCountry "ISL"]
[SourceTitle "playchess.com"]
[Source "ChessBase"]
[SourceQuality "1"]
[TimeControl "40/5400+30:1800+30"]

{[%evp 22,97,37,46,51,38,45,42,55,29,33,41,46,45,41,35,41,38,57,62,54,43,61,64,117,53,86,85,72,78,91,81,82,85,75,42,43,43,42,43,42,42,51,47,114,37,26,42,135,51,179,110,103,68,367,377,378,388,358,355,324,218,302,267,938,1336,969,870,1410,1387,1508,1262,1308,1067,1899,1672,2520,1945]} 1. e4 {[%emt 0:00:04]} e5 {[%emt 0:00:42]} 2. Nf3 {[%emt 0:02:34]} Nf6 {[%emt 0:00:04][%cal Bg8f6,Bf6e4,Be4d2][%mdl 32]} 3. Nxe5 {[%emt 0:00:07]} d6 {[%emt 0:00:14]} 4. Nf3 {[%emt 0:00:05]} Nxe4 {[%emt 0:00:10]} 5. d4 {[%emt 0:00:05]} d5 {[%emt 0:00:25]} 6. Bd3 {[%emt 0:00:08]} Nc6 {[%emt 0:00:20]} 7. O-O {[%emt 0:00:30]} Be7 {[%emt 0:00:07]} 8. Nbd2 {[%emt 0:00:55]} Bf5 {[%emt 0:02:43]} 9. Re1 {[%emt 0:01:00]} Nxd2 {[%emt 0:00:32]} 10. Qxd2 {[%emt 0:00:10]} Bxd3 {[%emt 0:04:37]} 11. Qxd3 {[%emt 0:00:06]} O-O {[%emt 0:00:11]} 12. c3 {[%emt 0:01:24]} Qd7 {[%emt 0:03:06] C42: Petroff Defence: 3 Nxe5 and unusual White 3rd moves.} 13. Bf4 {[%emt 0:03:43]} Rae8 {[%emt 0:00:46]} 14. Qb5 {[%emt 0:04:15]} b6 {[%emt 0:02:22] White is slightly better.} 15. g3 {[%emt 0:03:13] [#]} Bd8 $146 {[%emt 0:00:46]} ({Predecessor:} 15... Bd6 16. Qxd5 Ne7 17. Ne5 Nxd5 18. Nxd7 Rxe1+ 19. Rxe1 Ra8 20. Ne5 Nxf4 21. gxf4 f6 22. Nd3 Kf7 23. Kg2 a5 24. Kf3 Rd8 25. Rd1 {1-0 Eschert,U (2324)-Fortuny,M (1841) VW-Cup12 Gr32 email 2019}) 16. Kg2 {[%emt 0:01:12]} Ne5 {[%emt 0:01:42][%mdl 64] Discovered Attack} 17. Qxd7 {[%emt 0:02:47]} Nxd7 {[%emt 0:00:06]} 18. a4 {[%emt 0:02:14]} f6 {[%emt 0:01:24]} 19. h4 {[%emt 0:02:44]} h5 {[%emt 0:02:11]} 20. b4 $1 {[%emt 0:03:06][%cal Bb2b4,Bb4b5][%mdl 32]} Rxe1 {[%emt 0:03:19]} 21. Rxe1 {[%emt 0:00:58]} a6 {[%emt 0:04:40]} 22. b5 {[%emt 0:01:05]} a5 {[%emt 0:01:20]} (22... axb5 $14 23. axb5 Kf7) 23. Nd2 {[%emt 0:12:50]} (23. Nh2 $1 $16) 23... Rf7 {[%emt 0:06:45]} 24. c4 {[%emt 0:05:39]} dxc4 {[%emt 0:00:33]} 25. Nxc4 {[%emt 0:00:43]} Nf8 {[%emt 0:01:32]} 26. d5 $1 {[%emt 0:01:45] Strongly threatening Re8. White has more active pieces.} ({Much worse is} 26. Re8 $6 Rd7 $11) 26... Ng6 {[%emt 0:01:13]} 27. Re8+ {[%emt 0:02:39]} Rf8 {[%emt 0:00:33]} 28. Re6 {[%emt 0:00:52]} Kf7 $1 {[%emt 0:03:35]} 29. Kf3 {[%emt 0:13:58]} Re8 {[%emt 0:05:06]} 30. Rxe8 {[%emt 0:05:01]} Kxe8 $14 {[%emt 0:00:02][%mdl 4096] Endgame KBN-KBN} 31. Be3 {[%emt 0:08:36] And now d6 would win.} Ne7 {[%emt 0:05:45]} 32. Ke4 {[%emt 0:02:12]} Nc8 {[%emt 0:02:22] [#]} (32... g6 $1 $14) 33. Kf5 {[%emt 0:03:03]} ({White should play} 33. f3 $1 $16) 33... Kf7 $1 {[%emt 0:00:56]} 34. Bf4 {[%emt 0:00:37]} g6+ {[%emt 0:02:13]} 35. Ke4 {[%emt 0:00:27]} g5 {[%emt 0:03:54] [#]} (35... Ke8 $1 $14) 36. hxg5 {[%emt 0:00:48]} (36. Be3 $1 $18) 36... fxg5 $16 {[%emt 0:00:10]} 37. Be5 {[%emt 0:00:34] Hoping for f4.} Kg6 $2 {[%emt 0:02:32][%mdl 8192]} ({Black should try} 37... Ke8 $14) 38. f4 $18 {[%emt 0:03:56]} h4 {[%emt 0:01:25]} 39. g4 {[%emt 0:00:46]} ({Not} 39. f5+ Kf7 40. Kf3 Kf8 41. gxh4 gxh4 $18) 39... gxf4 {[%emt 0:03:18]} 40. Bxf4 {[%emt 0:00:12]} Kf6 {[%emt 0:00:36]} 41. Bh2 {[%emt 0:31:39]} Kg5 {[%emt 0:34:57]} 42. Kf3 {[%emt 0:00:34] Black must now prevent Ne5.} Ne7 $2 {[%emt 0:00:38]} (42... Kh6 43. Bf4+ Kg7) 43. Ne5 {[%emt 0:03:18] White is clearly winning.} Nxd5 {[%emt 0:06:05]} 44. Nf7+ {[%emt 0:00:09]} Kf6 {[%emt 0:00:06]} 45. Nxd8 {[%emt 0:00:08]} Nc3 {[%emt 0:00:15]} 46. Bxc7 {[%emt 0:01:37]} Nxa4 {[%emt 0:00:03]} 47. Nc6 {[%emt 0:00:27] Be5+ would be deadly.} Ke6 {[%emt 0:00:47]} 48. Nd4+ {[%emt 0:01:22]} Kd7 {[%emt 0:01:31] [#]} 49. g5 $1 {[%emt 0:00:43] Weighted Error Value: White=0.12 (very precise) /Black=0.33} 1-0

[Event "Icelandic Chess-ch 2023"]
[Site "Hafnarfjordur"]
[Date "2023.05.19"]
[Round "5.5"]
[White "Hjartarson, Johann"]
[Black "Ragnarsson, Dagur"]
[Result "1-0"]
[ECO "A28"]
[WhiteElo "2466"]
[BlackElo "2346"]
[Annotator "TA"]
[PlyCount "51"]
[EventDate "2023.05.13"]
[EventType "tourn"]
[EventCountry "ISL"]
[SourceTitle "playchess.com"]
[Source "ChessBase"]
[SourceQuality "1"]
[TimeControl "40/5400+30:1800+30"]

{[%evp 13,51,-6,0,-4,0,0,0,0,0,0,0,0,8,-24,22,13,27,-4,-6,0,0,0,0,0,0,0,37,46,145,127,173,168,182,180,169,162,250,254,514,540]} 1. c4 {[%emt 0:00:05]} e5 {[%emt 0:01:06]} 2. Nc3 {[%emt 0:00:08]} Nf6 {[%emt 0:00:06]} 3. Nf3 {[%emt 0:00:09]} Nc6 {[%emt 0:00:14]} 4. e3 {[%emt 0:00:18]} Bb4 {[%emt 0:00:54]} 5. Qc2 {[%emt 0:00:07]} Bxc3 {[%emt 0:00:06]} 6. bxc3 {[%emt 0:00:12]} O-O {[%emt 0:01:14]} 7. Be2 {[%emt 0:03:34]} d6 {[%emt 0:02:48]} 8. e4 {[%emt 0:00:19] A28: English Opening: Four Knights Variation.} h6 {[%emt 0:00:11]} 9. O-O {[%emt 0:01:23] [#]} Nh7 $146 {[%emt 0:01:12]} ({Predecessor:} 9... Ne7 10. d4 Ng6 11. c5 Re8 12. cxd6 cxd6 13. Rd1 Qc7 14. Ba3 Rd8 15. dxe5 dxe5 16. Rxd8+ Qxd8 {0-1 Tabatabaei,M (2677)-Caruana,F (2766) PRO League Prelim rapid 2023 (2.3)}) 10. d4 {[%emt 0:06:50] The position is equal.} Qf6 {[%emt 0:18:34]} 11. Be3 {[%emt 0:01:50]} Bg4 {[%emt 0:01:53]} 12. Rfd1 {[%emt 0:11:18]} Rfe8 {[%emt 0:08:51]} 13. d5 {[%emt 0:03:15]} Ne7 {[%emt 0:03:23]} (13... Na5 $142) 14. c5 {[%emt 0:01:20]} Ng6 {[%emt 0:09:14]} 15. Ne1 {[%emt 0:05:49]} Bxe2 {[%emt 0:08:39]} 16. Qxe2 {[%emt 0:00:08]} Nf4 {[%emt 0:00:03] Inhibits c4.} 17. Qc2 {[%emt 0:00:53]} dxc5 {[%emt 0:08:20]} 18. Bxc5 {[%emt 0:02:00]} c6 {[%emt 0:00:28]} 19. g3 {[%emt 0:12:30]} cxd5 {[%emt 0:13:17][%cal Oe8c8] White must now prevent ...Rec8!} 20. gxf4 {[%emt 0:01:55]} Qg6+ {[%emt 0:01:20]} (20... b6 $1 $14) 21. Kh1 $16 {[%emt 0:01:57]} exf4 {[%emt 0:00:18] [#]} (21... Qc6 $16) 22. e5 $1 $18 {[%emt 0:03:17] Threatens to win with Qxg6.} (22. Rxd5 Nf6 23. Rd6 Rxe4 $16) 22... Qh5 {[%emt 0:02:35] [#]} 23. Bd4 {[%emt 0:00:56]} (23. Rxd5 Rxe5 24. Rxe5 Qxe5 $16) 23... Ng5 {[%emt 0:03:49]} 24. Qf5 {[%emt 0:02:30]} Re6 {[%emt 0:02:15]} (24... Qe2 $142 25. Qd3 (25. Qxf4 $2 Qf1#) 25... Qh5) 25. Ng2 {[%emt 0:07:53]} (25. Qxf4 Rg6) 25... Rg6 $2 {[%emt 0:06:36]} (25... Rf8 {was called for.} 26. Rdb1 (26. Bxa7 b6 $16) (26. Nxf4 Qf3+ 27. Kg1 g6 $17 {[%mdl 64] Deflection}) 26... b6) 26. Rd3 {[%emt 0:00:46] Weighted Error Value: White=0.04 (flawless) /Black=0.47} (26. Nxf4 $2 {too greedy.} Qf3+ 27. Ng2 Qxf5 $19) 1-0

[Event "Icelandic Chess-ch 2023"]
[Site "Hafnarfjordur"]
[Date "2023.05.19"]
[Round "5.6"]
[White "Stefansson, Vignir Vatnar"]
[Black "Kjartansson, Gudmundur"]
[Result "1/2-1/2"]
[ECO "E05"]
[WhiteElo "2470"]
[BlackElo "2402"]
[Annotator "TA"]
[PlyCount "61"]
[EventDate "2023.05.13"]
[EventType "tourn"]
[EventCountry "ISL"]
[SourceTitle "playchess.com"]
[Source "ChessBase"]
[SourceQuality "1"]
[TimeControl "40/5400+30:1800+30"]

{[%evp 13,61,0,0,0,19,17,26,20,15,16,20,21,18,14,14,24,18,12,12,12,18,10,16,12,13,12,16,7,11,0,0,0,0,0,25,11,22,20,22,27,25,0,1,10,7,-8,0,0,0,0]} 1. Nf3 {[%emt 0:00:03]} d5 {[%emt 0:01:04][%cal Bd7d5,Bd5c4][%mdl 32]} 2. d4 {[%emt 0:00:34]} Nf6 {[%emt 0:00:16]} 3. c4 {[%emt 0:00:08]} e6 {[%emt 0:00:24]} 4. g3 {[%emt 0:00:09]} Be7 {[%emt 0:00:33]} 5. Bg2 {[%emt 0:00:51]} O-O {[%emt 0:00:29]} 6. O-O {[%emt 0:00:42]} dxc4 {[%emt 0:00:23]} 7. Qc2 {[%emt 0:00:54]} b5 {[%emt 0:01:01]} 8. a4 {[%emt 0:01:00] E05: Open Catalan: 5 Nf3 Be7.} Bb7 {[%emt 0:00:38] Nowadays more popular than 8...b4.} 9. axb5 {[%emt 0:00:06]} a6 {[%emt 0:00:08]} 10. bxa6 {[%emt 0:01:19] White has an edge.} (10. Qxc4 $2 {perishes.} axb5 11. Qxb5 Bc6 12. Rxa8 Bxb5 $19) 10... Nxa6 {[%emt 0:00:41][%cal Bb8a6,Ba6b4,Bb4c2][%mdl 32]} 11. Qxc4 {[%emt 0:00:06]} Bd5 {[%emt 0:01:37]} 12. Qc3 {[%emt 0:01:37]} c5 {[%emt 0:00:31]} 13. Be3 {[%emt 0:01:08]} Ne4 {[%emt 0:00:47]} 14. Qe1 {[%emt 0:01:34]} Nb4 {[%emt 0:01:37]} 15. Rxa8 {[%emt 0:00:08]} Qxa8 {[%emt 0:00:06]} 16. Nc3 {[%emt 0:00:03]} Nxc3 {[%emt 0:01:13]} 17. bxc3 {[%emt 0:00:40]} Nc2 {[%emt 0:00:48]} 18. Qd2 {[%emt 0:00:22]} Nxe3 {[%emt 0:00:05]} 19. Qxe3 {[%emt 0:00:06]} h6 {[%emt 0:02:33]} 20. Qf4 {[%emt 0:16:50]} Bg5 {[%emt 0:35:45] [#] This pair of bishops is nice.} 21. Qd6 $146 {[%emt 0:04:29]} ({Predecessor:} 21. Qg4 Bf6 22. c4 Bxc4 23. Ne5 Qa2 24. Bf3 Bxe5 25. dxe5 Rb8 26. Rc1 Rb1 27. Rxb1 Qxb1+ {½-½ Theodorou,N (2575)-Stefansson,H (2541) Olympiad-44 Chennai 2022 (10.2)}) 21... cxd4 {[%emt 0:14:33]} 22. cxd4 {[%emt 0:00:29]} Rd8 {[%emt 0:02:35]} 23. Qb4 {[%emt 0:00:53]} Be4 {[%emt 0:05:34]} 24. Ne1 {[%emt 0:36:01]} Bxg2 $1 {[%emt 0:01:31]} 25. Nxg2 {[%emt 0:00:07]} Qe4 $1 {[%emt 0:00:50][%csl LRd4,LRe2]} 26. e3 {[%emt 0:00:05]} e5 $1 {[%emt 0:00:37][%cal Re5d4]} 27. Qb1 {[%emt 0:00:03]} (27. h4 $5 Bf6 $8 28. f3 $11) 27... Qxb1 {[%emt 0:00:20] The position is equal.} 28. Rxb1 {[%emt 0:00:02]} exd4 {[%emt 0:00:10]} 29. Rd1 {[%emt 0:00:07]} dxe3 {[%emt 0:00:10]} 30. Rxd8+ {[%emt 0:00:04]} Bxd8 {[%emt 0:00:05]} 31. Nxe3 {[%emt 0:00:03] A balanced but interesting game.   Weighted Error Value: White=0.04 (flawless) /Black=0.02 (flawless)} 1/2-1/2

[Event "Icelandic Chess-ch 2023"]
[Site "Hafnarfjordur"]
[Date "2023.05.20"]
[Round "6.1"]
[White "Ptacnikova, Lenka"]
[Black "Kjartansson, Gudmundur"]
[Result "0-1"]
[ECO "E05"]
[WhiteElo "2099"]
[BlackElo "2402"]
[Annotator "TA"]
[PlyCount "70"]
[EventDate "2023.05.13"]
[EventType "tourn"]
[EventCountry "ISL"]
[SourceTitle "playchess.com"]
[Source "ChessBase"]
[SourceQuality "1"]
[TimeControl "40/5400+30:1800+30"]

{[%evp 21,70,-6,-4,-20,-12,-39,-31,-50,-60,-54,-32,-20,-10,-14,-22,-35,-30,-45,-43,-58,-59,-98,-103,-124,-60,-65,-74,-145,-124,-152,-156,-156,-137,-165,-164,-157,-157,-166,-153,-162,-172,-236,-236,-266,-222,-346,-352,-623,-615,-602,-592]} 1. c4 {[%emt 0:00:01]} e6 {[%emt 0:01:21]} 2. g3 {[%emt 0:00:28]} d5 {[%emt 0:00:05]} 3. Bg2 {[%emt 0:00:03]} Nf6 {[%emt 0:00:14]} 4. Nf3 {[%emt 0:00:17]} Be7 {[%emt 0:02:17]} 5. O-O {[%emt 0:00:31]} O-O {[%emt 0:00:10]} 6. d4 {[%emt 0:01:41]} dxc4 {[%emt 0:01:13]} 7. Qc2 {[%emt 0:03:34]} a6 {[%emt 0:00:12]} 8. a4 {[%emt 0:00:45]} Bd7 {[%emt 0:00:20]} 9. Ne5 {[%emt 0:00:42]} Bc6 {[%emt 0:24:28]} 10. Nxc6 {[%emt 0:03:29]} Nxc6 {[%emt 0:00:05]} 11. Bxc6 {[%emt 0:00:08]} bxc6 {[%emt 0:00:05]} 12. Qxc4 {[%emt 0:00:12] E05: Open Catalan: 5 Nf3 Be7.} Qd5 {[%emt 0:01:26]} 13. Qxd5 {[%emt 0:08:11]} cxd5 {[%emt 0:00:26]} 14. Bf4 {[%emt 0:03:06][%cal Of1c1] Black is slightly better.} Rfb8 {[%emt 0:12:15]} 15. Ra2 {[%emt 0:03:57]} Rb4 {[%emt 0:03:09]} 16. Bxc7 {[%emt 0:01:30]} Rxd4 {[%emt 0:01:04] [#]} 17. b3 $146 {[%emt 0:08:32] Prevents Rc4} ({Predecessor:} 17. Be5 Re4 18. Bxf6 Bxf6 19. b3 Rb4 20. Nd2 Bc3 21. Rb1 Rab8 22. e4 Bxd2 23. Rxd2 Rxe4 24. Rd3 Rxa4 {0-1 Allen,O-Lindhard,L DEN-FIN corr 2000 (18)}) 17... Rb4 {[%emt 0:05:06]} 18. Nd2 {[%emt 0:02:55]} Rb7 {[%emt 0:01:31]} 19. Rc1 {[%emt 0:03:37]} Bb4 {[%emt 0:04:52]} 20. Nf3 {[%emt 0:00:35]} Ne4 $36 {[%emt 0:01:19][%mdl 2048] And now ...Nc3 would win. Black fights for an advantage.} 21. Be5 {[%emt 0:01:44][%cal Bc7e5,Be5b2,Bb2d4][%mdl 32] Inhibits Nc3.} f6 {[%emt 0:00:52]} 22. Bb2 {[%emt 0:06:17]} Bc5 {[%emt 0:09:12] Black is more active.} (22... e5 $17 23. Kg2 Ba5) 23. Bd4 $15 {[%emt 0:01:15]} Bf8 {[%emt 0:01:23]} 24. Rc6 {[%emt 0:00:26]} (24. Nd2 $142) 24... e5 $1 $17 {[%emt 0:03:28]} ({Inferior is} 24... Rxb3 25. Rxe6 Rb4 26. e3 $11) 25. Bb6 {[%emt 0:00:24] [#]} a5 $1 {[%emt 0:02:28] aiming for ...Ra6.} 26. Rac2 {[%emt 0:00:49]} d4 {[%emt 0:05:16]} 27. Bxd4 {[%emt 0:08:14]} exd4 {[%emt 0:00:19]} 28. Nxd4 {[%emt 0:00:02]} Rd8 {[%emt 0:07:48]} 29. e3 {[%emt 0:02:51]} Rd5 {[%emt 0:04:09]} 30. Rc8 {[%emt 0:01:48] [#]} Kf7 {[%emt 0:00:54] Against Ne6} 31. f3 {[%emt 0:05:17]} (31. R8c7+ $142 Rd7 32. R7c4) 31... Nc5 $19 {[%emt 0:04:04]} 32. Rc3 {[%emt 0:01:52]} Be7 {[%emt 0:00:42]} 33. Ra8 {[%emt 0:05:35]} (33. Rc6 {is a better defense.}) 33... Ne6 {[%emt 0:00:56]} 34. Nb5 $2 {[%emt 0:02:12]} (34. Nxe6 Kxe6 35. e4 Rd1+ 36. Kg2) 34... Rd1+ {[%emt 0:01:14]} 35. Kg2 {[%emt 0:00:17]} Rd2+ {[%emt 0:00:08] Weighted Error Value: White=0.37/Black=0.07 (flawless)} 0-1